fUSD/lending_fUSD_20250606
["ID","MTS","AMOUNT","RATE_DAILY","PERIOD"]
[364742737,1749225045634,-472.22186935,0.00029889,5]
[364742739,1749225045644,-480.0,0.00029889,5]
[364742741,1749225045654,-624.93756288,0.00029889,5]
[364742743,1749225045663,-480.0,0.00029889,5]
[364742745,1749225045674,-480.0,0.00029889,5]
[364742747,1749225045684,-480.0,0.00029889,5]
[364742749,1749225045694,-480.0,0.00029889,5]
[364742751,1749225045704,-460.0,0.00029889,5]
[364742753,1749225045714,-891.59,0.00029889,5]
[364742755,1749225045724,-480.0,0.00029889,5]
[364742757,1749225045734,-480.0,0.00029889,5]
[364742759,1749225045744,-480.0,0.00029889,5]
[364742761,1749225045754,-530.27,0.00029889,5]
[364742763,1749225045763,-480.0,0.00029889,5]
[364742765,1749225045772,-480.0,0.00029889,5]
[364742767,1749225045782,-545.88167376,0.00029889,5]
[364742769,1749225045793,-480.0,0.00029889,5]
[364742771,1749225045803,-480.0,0.00029889,5]
[364742773,1749225045812,-480.0,0.00029889,5]
[364742775,1749225045822,-480.0,0.00029889,5]
[364742777,1749225045832,-480.0,0.00029889,5]
[364742779,1749225045842,-480.0,0.00029889,5]
[364742781,1749225045852,-480.0,0.00029889,5]
[364742783,1749225045862,-480.0,0.00029889,5]
[364742785,1749225045872,-480.0,0.00029889,5]
[364742787,1749225045881,-480.0,0.00029889,5]
[364742789,1749225045891,-634.03,0.00029889,5]
[364742791,1749225045901,-480.0,0.00029889,5]
[364742793,1749225045911,-470.55415532,0.00029889,5]
[364742795,1749225045920,-480.0,0.00029889,5]
[364742797,1749225045930,-480.0,0.00029889,5]
[364742799,1749225045940,-480.0,0.00029889,5]
[364742801,1749225045949,-480.0,0.00029889,5]
[364742803,1749225045959,-480.0,0.00029889,5]
[364742805,1749225045969,-480.0,0.00029889,5]
[364742807,1749225045981,-487.50329774,0.00029889,5]
[364742809,1749225045991,-489.04,0.00029889,5]
[364742811,1749225046002,-480.0,0.00029889,5]
[364742813,1749225046011,-480.0,0.00029889,5]
[364742815,1749225046022,-243.92404458,0.00029889,5]
[364742817,1749225046033,-480.0,0.00029889,5]
[364742819,1749225046043,-480.0,0.00029889,5]
[364742821,1749225046056,-480.0,0.00029889,5]
[364742823,1749225046066,-480.0,0.00029889,5]
[364742825,1749225046076,-480.0,0.00029889,5]
[364742828,1749225046085,-480.0,0.00029889,5]
[364742830,1749225046096,-480.0,0.00029889,5]
[364742832,1749225046105,-302.0179852,0.00029889,5]
[364742833,1749225046115,-480.0,0.00029889,5]
[364742836,1749225046126,-480.0,0.00029889,5]
[364742838,1749225046135,-480.0,0.00029889,5]
[364742840,1749225046146,-480.0,0.00029889,5]
[364742842,1749225046156,-480.0,0.00029889,5]
[364742843,1749225046166,-480.0,0.00029889,5]
[364742845,1749225046176,-480.0,0.00029889,5]
[364742847,1749225046185,-330.15579232,0.00029889,5]
[364742849,1749225046195,-480.0,0.00029889,5]
[364742851,1749225046205,-578.22,0.00029889,5]
[364742853,1749225046214,-510.76457102,0.00029889,5]
[364742855,1749225046224,-480.0,0.00029889,5]
[364742857,1749225046234,-480.0,0.00029889,5]
[364742859,1749225046244,-480.0,0.00029889,5]
[364742861,1749225046253,-480.0,0.00029889,5]
[364742864,1749225046263,-480.0,0.00029889,5]
[364742866,1749225046272,-480.0,0.00029889,5]
[364742867,1749225046282,-480.0,0.00029889,5]
[364742871,1749225046293,-480.0,0.00029889,5]
[364742873,1749225046302,-480.0,0.00029889,5]
[364742874,1749225046312,-480.0,0.00029889,2]
[364742877,1749225046322,-480.0,0.00029889,5]
[364742879,1749225046332,-480.0,0.00029889,5]
[364742880,1749225046341,-88.17258899,0.00029889,5]
[364742920,1749225046717,-391.82741101,0.00029889,5]
[364742922,1749225046727,-480.0,0.00029889,5]
[364742924,1749225046736,-480.0,0.00029889,5]
[364742926,1749225046746,-574.0,0.00029889,5]
[364742928,1749225046755,-480.0,0.00029889,5]
[364742930,1749225046765,-480.0,0.00029889,5]
[364742932,1749225046774,-480.0,0.00029889,5]
[364742934,1749225046784,-1334.38,0.00029889,5]
[364742936,1749225046794,-795.35,0.00029889,5]
[364742938,1749225046803,-460.0,0.00029889,5]
[364742940,1749225046813,-480.0,0.00029889,5]
[364742942,1749225046822,-480.0,0.00029889,5]
[364742944,1749225046831,-480.0,0.00029889,5]
[364742946,1749225046841,-480.0,0.00029889,5]
[364742948,1749225046851,-831.26,0.00029889,5]
[364742950,1749225046861,-480.0,0.00029889,5]
[364742952,1749225046870,-1993.16,0.00029889,5]
[364742954,1749225046880,-365.5181928,0.00029889,2]
[364742956,1749225046890,-480.0,0.00029889,5]
[364742958,1749225046899,-480.0,0.00029889,5]
[364742960,1749225046909,-509.66,0.00029889,5]
[364742962,1749225046919,-1184.01,0.00029889,5]
[364742964,1749225046928,-480.0,0.00029889,5]
[364742966,1749225046937,-520.73,0.00029889,5]
[364742968,1749225046947,-480.0,0.00029889,5]
[364742970,1749225046957,-1346.62,0.00029889,5]
[364742972,1749225046966,-460.0,0.00029889,5]
[364742974,1749225046979,-480.0,0.00029889,5]
[364742976,1749225046989,-480.0,0.00029889,5]
[364742978,1749225046999,-480.0,0.00029889,5]
[364742980,1749225047008,-460.0,0.00029889,5]
[364742982,1749225047018,-482.23540605,0.00029889,5]
[364742984,1749225047028,-460.0,0.00029889,5]
[364742986,1749225047037,-480.0,0.00029889,5]
[364742988,1749225047047,-193.44859013,0.00029889,5]
[364743086,1749225047960,-260.76162547,0.00029888,5]
[364743088,1749225047975,-219.23837453,0.00029888,5]
[364743090,1749225047984,-480.0,0.00029888,5]
[364743093,1749225047994,-480.0,0.00029888,5]
[364743096,1749225048003,-480.0,0.00029888,5]
[364743098,1749225048014,-286.55140987,0.00029889,5]
[364743100,1749225048024,-480.0,0.00029889,5]
[364743102,1749225048033,-586.27,0.00029889,5]
[364743104,1749225048044,-480.0,0.00029889,5]
[364743106,1749225048054,-480.0,0.00029889,5]
[364743108,1749225048063,-232.37679818,0.00029889,5]
[364743110,1749225048073,-89.34758093,0.00029889,5]
[364743112,1749225048084,-390.65241907,0.00029889,5]
[364743114,1749225048094,-480.0,0.00029889,5]
[364743117,1749225048103,-480.0,0.00029889,5]
[364743119,1749225048112,-1071.14,0.00029889,5]
[364743122,1749225048122,-710.58,0.00029889,5]
[364743124,1749225048132,-480.0,0.00029889,5]
[364743127,1749225048143,-706.55194474,0.00029889,5]
[364743173,1749225048585,-33.80954756,0.00029887,5]
[364743443,1749225063569,155.21711798,0.00035439,120]
[364743579,1749225349074,2739.04369123,0.000356,120]
[364743580,1749225357887,1000.0,0.00035616,120]
[364743594,1749225387993,2000.0,0.00035616,120]
[364743595,1749225396327,1000.0,0.00035616,120]
[364743596,1749225400036,2000.0,0.00035616,120]
[364743598,1749225488128,1000.0,0.00035616,120]
[364743602,1749225586448,2357.84941265,0.00035616,120]
[364743606,1749225652623,4000.0,0.00035616,120]
[364743607,1749225653072,164.56,0.000285,120]
[364743611,1749225690517,150.0,0.00033841,120]
[364743614,1749225717930,150.0,0.0002,2]
[364743617,1749225734554,150.0,0.0002,2]
[364743618,1749225735864,150.0,0.0002,2]
[364743622,1749225771969,261.27735,0.0002,2]
[364743624,1749225810803,150.0,0.00033544,120]
[364743633,1749225887338,450.0,0.0002,2]
[364743638,1749225914017,172.24556079,0.00035616,120]
[364743639,1749225916681,172.24556079,0.00035616,120]
[364743640,1749225917706,172.24556079,0.00035616,120]
[364743641,1749225918677,172.24556079,0.00035616,120]
[364743642,1749225919603,172.24556079,0.00035616,120]
[364743643,1749225925325,172.24556077,0.00035616,120]
[364743667,1749226124299,743.74158224,0.00035616,120]
[364743668,1749226128262,300.0,0.000356,120]
[364743695,1749226231707,-178.42,0.00025812,2]
[364743697,1749226231717,-218.0,0.00025973,2]
[364743699,1749226231728,-846.15,0.00026478,2]
[364743701,1749226231738,-203.0,0.00027169,2]
[364743703,1749226231750,-250.0,0.00027747,2]
[364743704,1749226231761,-154.81,0.00028123,2]
[364743705,1749226231772,-200.0,0.00028168,2]
[364743706,1749226231783,-1000.0,0.00028226,2]
[364743707,1749226231794,-3267.72,0.00028264,2]
[364743708,1749226231804,-518.09,0.00028294,2]
[364743709,1749226231816,-150.0,0.00028305,2]
[364743710,1749226231827,-1000.0,0.00028348,2]
[364743711,1749226231837,-1200.0,0.00028409,2]
[364743712,1749226231847,-813.81,0.0002841,2]
[364743713,1749226231859,-303.50177395,0.0002841,2]
[364743714,1749226231869,-300.0,0.00028499,2]
[364743715,1749226231879,-1203.16,0.000285,2]
[364743716,1749226231890,-500.0,0.00028528,2]
[364743717,1749226231900,-250.0,0.00028537,2]
[364743718,1749226231910,-850.0,0.000286,2]
[364743719,1749226231920,-1000.0,0.00028601,2]
[364743720,1749226231930,-151.0,0.00028601,2]
[364743721,1749226231940,-151.0,0.00028601,2]
[364743722,1749226231950,-722.96591549,0.00028601,2]
[364743723,1749226231962,-845.09770921,0.00028601,2]
[364743724,1749226231987,-389.7923753,0.00028601,2]
[364743725,1749226231997,-151.0,0.00028601,2]
[364743726,1749226232007,-500.0,0.00028601,2]
[364743727,1749226232017,-800.0,0.00028601,2]
[364743728,1749226232026,-500.0,0.00028601,2]
[364743729,1749226232036,-638.19138573,0.00028601,2]
[364743730,1749226232046,-151.0,0.00028601,2]
[364743731,1749226232056,-151.0,0.00028601,2]
[364743732,1749226232066,-151.0,0.00028601,2]
[364743733,1749226232076,-151.0,0.00028601,2]
[364743734,1749226232086,-207.4,0.00028601,2]
[364743735,1749226232096,-300.0,0.00028617,2]
[364743736,1749226232107,-150.0,0.00028618,7]
[364743737,1749226232117,-335.49,0.00028618,2]
[364743738,1749226232127,-2187.91,0.00028618,2]
[364743739,1749226232136,-150.99,0.00028618,2]
[364743740,1749226232146,-2863.03,0.00028618,2]
[364743741,1749226232156,-9999.99,0.00028618,2]
[364743742,1749226232166,-150.99,0.00028618,2]
[364743743,1749226232176,-999.99,0.00028618,2]
[364743744,1749226232186,-1087.86,0.00028618,2]
[364743745,1749226232196,-1985.67,0.00028618,2]
[364743746,1749226232206,-9999.99,0.00028618,2]
[364743747,1749226232216,-9999.99,0.00028618,2]
[364743748,1749226232226,-2030.296672,0.00028656,2]
[364743749,1749226232236,-250.0,0.00028695,2]
[364743750,1749226232246,-250.0,0.00028695,2]
[364743751,1749226232256,-775.66,0.00028701,2]
[364743754,1749226232266,-533.49,0.00028701,2]
[364743755,1749226232276,-2105.41764886,0.00028711,2]
[364743756,1749226232286,-846.15,0.00028742,2]
[364743757,1749226232295,-2183.31810187,0.00028766,2]
[364743758,1749226232305,-2264.10087164,0.00028821,2]
[364743759,1749226232316,-180.76,0.00028866,2]
[364743760,1749226232326,-2412.25743339,0.00028876,2]
[364743761,1749226232336,-155.66,0.00028892,2]
[364743762,1749226232346,-683.81970837,0.000289,20]
[364743763,1749226232356,-304.99,0.00028902,30]
[364743764,1749226232366,-4892.25,0.0002893,2]
[364743765,1749226232376,-156.16,0.00029,2]
[364743766,1749226232388,-166.67,0.00029173,2]
[364743767,1749226232398,-1254.0,0.00029188,2]
[364743768,1749226232408,-857.309,0.00029188,2]
[364743769,1749226232418,-4081.0,0.00029188,2]
[364743770,1749226232428,-241.606,0.00029188,2]
[364743771,1749226232438,-683.81970809,0.00029245,20]
[364743772,1749226232448,-387.796905,0.00029259,6]
[364743773,1749226232459,-281.41828824,0.00029278,2]
[364743774,1749226232470,-163.15,0.00029457,2]
[364743775,1749226232480,-1162.75,0.00029457,2]
[364743776,1749226232490,-1162.75,0.00029457,2]
[364743777,1749226232500,-1162.75,0.00029457,2]
[364743778,1749226232510,-1162.75,0.00029457,2]
[364743779,1749226232520,-1000.0,0.00029498,2]
[364743780,1749226232530,-3174.19961843,0.00029557,2]
[364743781,1749226232540,-3174.13,0.00029587,2]
[364743782,1749226232550,-683.81970809,0.0002959,21]
[364743783,1749226232559,-366.94086279,0.00029757,2]
[364743784,1749226232570,-150.36942208,0.00029757,2]
[364743785,1749226232580,-447.33022898,0.00029757,2]
[364743786,1749226232590,-345.17842103,0.00029767,2]
[364743787,1749226232600,-6860.69451185,0.00029767,2]
[364743788,1749226232609,-5000.0,0.00029767,2]
[364743789,1749226232619,-169.71507828,0.00029777,2]
[364743790,1749226232629,-1182.89717652,0.00029777,2]
[364743791,1749226232639,-6860.69451184,0.00029786,2]
[364743792,1749226232648,-500.0,0.00029787,2]
[364743793,1749226232658,-1000.0,0.00029788,2]
[364743794,1749226232668,-6860.69451184,0.00029806,2]
[364743795,1749226232679,-3592.16874176,0.00029817,2]
[364743796,1749226232688,-1324.05336222,0.00029825,2]
[364743797,1749226232725,-1094.29222175,0.00029825,2]
[364743807,1749226237707,-155.0,0.00029188,2]
[364743808,1749226237717,-447.3302289,0.00029777,2]
[364743809,1749226237727,-177.8071235,0.00029786,2]
[364743810,1749226237736,-3776.53380301,0.00029825,2]
[364743811,1749226237748,-650.38110723,0.00029825,2]
[364743812,1749226237760,-15.43401763,0.00029825,2]
[364743813,1749226237769,-1130.77626087,0.00029844,2]
[364743814,1749226237971,-290.98456614,0.00029844,2]
[364743998,1749226239807,-447.3302289,0.00029798,2]
[364744000,1749226239819,-5438.93368483,0.00029844,2]
[364744002,1749226239829,-151.56,0.00029847,2]
[364744004,1749226239839,-152.0,0.00029854,3]
[364744006,1749226239848,-2289.32808377,0.00029854,4]
[364744008,1749226239859,-710.13447222,0.00029854,4]
[364744010,1749226239872,-529.04892289,0.00029854,4]
[364744014,1749226239910,-389.8167497,0.00029854,4]
[364744037,1749226240126,-76079.52127062,0.00029854,4]
[364744144,1749226245237,250.0,0.00019,2]
[364744155,1749226246044,-466.98225188,0.00029188,2]
[364744157,1749226246055,-691.01774812,0.00029188,2]
[364744160,1749226246065,-447.3302289,0.00029818,2]
[364744161,1749226246074,-300.0,0.00029853,2]
[364744164,1749226246083,-18256.16411824,0.00029854,4]
[364744170,1749226246280,-712.69204844,0.00029854,4]
[364744215,1749226349184,895.17707622,0.00033,120]
[364744217,1749226381529,1000.0,0.00035,120]
[364744255,1749226411105,150.0,0.00033085,120]
[364744259,1749226590762,150.0,0.00033835,120]
[364744260,1749226593403,749.0,0.00035616,120]
[364744269,1749226830505,150.0,0.00034335,120]
[364744270,1749226889218,504.02172633,0.00035616,120]
[364744273,1749227108039,50000.0,0.0002,2]
[364744274,1749227108062,2603.77668795,0.0002,2]
[364744275,1749227108085,2853.77668795,0.0002,2]
[364744276,1749227108108,2853.77668795,0.0002,2]
[364744277,1749227108130,2853.77668795,0.0002,2]
[364744278,1749227108153,2853.77668795,0.0002,2]
[364744279,1749227108176,2853.77668795,0.0002,2]
[364744280,1749227108198,2853.77668795,0.0002,2]
[364744281,1749227108221,2853.77668795,0.0002,2]
[364744282,1749227108243,2853.77668795,0.0002,2]
[364744283,1749227108265,2853.77668795,0.0002,2]
[364744284,1749227108292,28797.07535994,0.0002,2]
[364744285,1749227108319,39878.234375,0.0002,2]
[364744286,1749227108346,39878.234375,0.0002,2]
[364744287,1749227108372,39878.234375,0.0002,2]
[364744288,1749227108397,39878.234375,0.0002,2]
[364744289,1749227108422,39878.234375,0.0002,2]
[364744290,1749227108445,39878.234375,0.0002,2]
[364744291,1749227108471,39878.234375,0.0002,2]
[364744292,1749227108496,39878.234375,0.0002,2]
[364744293,1749227108520,39878.234375,0.0002,2]
[364744294,1749227108546,39878.234375,0.0002,2]
[364744295,1749227108577,39878.234375,0.0002,2]
[364744296,1749227108603,39878.234375,0.0002,2]
[364744297,1749227108627,39878.234375,0.0002,2]
[364744298,1749227108652,39878.234375,0.0002,2]
[364744299,1749227108676,39878.234375,0.0002,2]
[364744300,1749227108703,39878.234375,0.0002,2]
[364744301,1749227108727,39878.234375,0.0002,2]
[364744302,1749227108813,39878.234375,0.0002,2]
[364744303,1749227108839,39878.234375,0.0002,2]
[364744304,1749227108862,39878.234375,0.0002,2]
[364744305,1749227108887,39878.234375,0.0002,2]
[364744306,1749227108911,39878.234375,0.0002,2]
[364744307,1749227108935,39878.234375,0.0002,2]
[364744308,1749227108958,39878.234375,0.0002,2]
[364744309,1749227108982,39878.234375,0.0002,2]
[364744310,1749227109005,39878.234375,0.0002,2]
[364744311,1749227109028,39878.234375,0.0002,2]
[364744312,1749227109051,39878.234375,0.0002,2]
[364744313,1749227109074,39878.234375,0.0002,2]
[364744314,1749227109096,39878.234375,0.0002,2]
[364744315,1749227109120,39878.234375,0.0002,2]
[364744316,1749227109144,39878.234375,0.0002,2]
[364744317,1749227109168,39878.234375,0.0002,2]
[364744318,1749227109190,39878.234375,0.0002,2]
[364744319,1749227109213,39878.234375,0.0002,2]
[364744320,1749227109235,39878.234375,0.0002,2]
[364744321,1749227109258,39878.234375,0.0002,2]
[364744322,1749227109282,39878.234375,0.0002,2]
[364744323,1749227109308,39878.234375,0.0002,2]
[364744324,1749227109331,39878.234375,0.0002,2]
[364744325,1749227109354,39878.234375,0.0002,2]
[364744326,1749227109377,39878.234375,0.0002,2]
[364744327,1749227109401,39878.234375,0.0002,2]
[364744328,1749227109423,39878.234375,0.0002,2]
[364744329,1749227109447,39878.234375,0.0002,2]
[364744330,1749227109474,39878.234375,0.0002,2]
[364744331,1749227109500,39878.234375,0.0002,2]
[364744332,1749227109524,39878.234375,0.0002,2]
[364744333,1749227109549,39878.234375,0.0002,2]
[364744334,1749227109576,39878.234375,0.0002,2]
[364744335,1749227109601,39878.234375,0.0002,2]
[364744336,1749227109625,39878.234375,0.0002,2]
[364744337,1749227109648,39878.234375,0.0002,2]
[364744338,1749227109673,39878.234375,0.0002,2]
[364744339,1749227109699,39878.234375,0.0002,2]
[364744340,1749227109727,39878.234375,0.0002,2]
[364744341,1749227109754,39878.234375,0.0002,2]
[364744342,1749227109780,39878.234375,0.0002,2]
[364744343,1749227109810,39878.234375,0.0002,2]
[364744344,1749227109837,39878.234375,0.0002,2]
[364744345,1749227109862,39878.234375,0.0002,2]
[364744346,1749227109886,39878.234375,0.0002,2]
[364744347,1749227109910,39878.234375,0.0002,2]
[364744348,1749227109935,39878.234375,0.0002,2]
[364744349,1749227109960,39878.234375,0.0002,2]
[364744350,1749227109983,39878.234375,0.0002,2]
[364744351,1749227110006,39878.234375,0.0002,2]
[364744352,1749227110030,39878.234375,0.0002,2]
[364744353,1749227110056,39878.234375,0.0002,2]
[364744354,1749227110079,39878.234375,0.0002,2]
[364744355,1749227110103,39878.234375,0.0002,2]
[364744356,1749227110127,13034.6728707,0.0002,2]
[364744357,1749227130520,150.0,0.00034536,120]
[364744362,1749227215270,1368.49899995,0.00015,14]
[364744363,1749227230809,846.92921219,0.00015,2]
[364744364,1749227253978,24628.13329216,0.00018,2]
[364744365,1749227254002,39878.234375,0.00018,2]
[364744367,1749227254026,39878.234375,0.00018,2]
[364744368,1749227254049,39878.234375,0.00018,2]
[364744369,1749227254073,39878.234375,0.00018,2]
[364744370,1749227254101,91944.60750895,0.00018,2]
[364744371,1749227254127,30486.22442971,0.00018,2]
[364744372,1749227254152,91022.15081074,0.00018,2]
[364744373,1749227287868,5155.14396107,0.0001439,2]
[364744376,1749227310412,150.0,0.000195,5]
[364744377,1749227317400,3933.05410939,0.00013368,2]
[364744378,1749227370752,150.0,0.00032833,120]
[364744389,1749227431768,-300.0,0.00019899,2]
[364744390,1749227431778,-267.60203135,0.00019899,2]
[364744391,1749227431790,-932.39796865,0.00019899,2]
[364744392,1749227431804,-161.18264397,0.000199,2]
[364744393,1749227431814,-499.09373988,0.000199,2]
[364744394,1749227431824,-2244.87287498,0.000199,2]
[364744395,1749227431835,-846.34701537,0.000199,2]
[364744396,1749227431845,-276.88206124,0.000199,2]
[364744397,1749227431855,-500.0,0.00019973,2]
[364744398,1749227431865,-500.0,0.00019973,2]
[364744399,1749227431875,-500.0,0.00019973,2]
[364744400,1749227431885,-500.0,0.00019973,2]
[364744401,1749227431895,-500.0,0.00019973,2]
[364744402,1749227431905,-500.0,0.00019973,2]
[364744403,1749227431914,-500.0,0.00019973,2]
[364744404,1749227431924,-500.0,0.00019973,2]
[364744405,1749227431934,-151.86,0.0001999,2]
[364744406,1749227431943,-500.0,0.00019999,2]
[364744407,1749227431953,-192.61145682,0.00019999,2]
[364744408,1749227431962,-232.06589122,0.00019999,2]
[364744409,1749227431972,-477.06199408,0.00019999,2]
[364744412,1749227431993,-48.16839112,0.00019999,2]
[364744414,1749227432002,-279.81265298,0.00019999,2]
[364744416,1749227432011,-351.74305199,0.00019999,2]
[364744418,1749227432020,-531.21995791,0.00019999,2]
[364744420,1749227432032,-107.54281165,0.00019999,2]
[364744422,1749227432041,-274.15938302,0.00019999,2]
[364744424,1749227432050,-257.59815901,0.00019999,2]
[364744426,1749227432059,-227.91736017,0.00019999,2]
[364744428,1749227432069,-500.0,0.00019999,2]
[364744430,1749227432081,-500.0,0.00019999,2]
[364744432,1749227432090,-154.31220107,0.00019999,2]
[364744439,1749227432133,-345.68779893,0.00019999,2]
[364744442,1749227432143,-500.0,0.00019999,2]
[364744445,1749227432153,-196.63097721,0.00019999,2]
[364744448,1749227432164,-303.36902279,0.00019999,2]
[364744450,1749227432174,-500.0,0.00019999,2]
[364744452,1749227432183,-503.11151744,0.00019999,2]
[364744454,1749227432192,-500.0,0.00019999,2]
[364744455,1749227432201,-350.0,0.00019999,2]
[364744457,1749227432210,-500.0,0.00019999,2]
[364744459,1749227432220,-4513.42802547,0.0002,2]
[364744471,1749227432326,-3541.66851035,0.0002,2]
[364744473,1749227432339,-1682.33057766,0.0002,2]
[364744475,1749227432351,-3053.55714233,0.0002,2]
[364744478,1749227432367,-713.45537424,0.0002,2]
[364744480,1749227432379,-81700.84823639,0.0002,2]
[364744580,1749227437753,-391.2026339,0.0001999,2]
[364744581,1749227437764,-1722324.81981215,0.0002,2]
[364744582,1749227437775,-3950.0,0.0002,2]
[364744583,1749227437784,-1257.244865,0.0002,2]
[364744584,1749227437794,-1022.31587944,0.0002,2]
[364744585,1749227437807,-11895.52347503,0.0002,2]
[364744586,1749227437817,-1014.44064839,0.0002,2]
[364744587,1749227437826,-2779.34124392,0.0002,2]
[364744588,1749227437835,-124429.13794348,0.0002,2]
[364744589,1749227437844,-1000.0,0.00020521,2]
[364744590,1749227437854,-1000.0,0.00020521,2]
[364744591,1749227437864,-1000.0,0.00020521,2]
[364744592,1749227437874,-305.62590981,0.00020521,2]
[364744593,1749227437883,-1000.0,0.00020521,2]
[364744594,1749227437892,-2244.87287491,0.00020993,2]
[364744595,1749227437901,-706.07349728,0.00021068,2]
[364744596,1749227437914,-1500.0,0.00021068,2]
[364744597,1749227437926,-1500.0,0.00021068,2]
[364744599,1749227437935,-1500.0,0.00021068,2]
[364744600,1749227437945,-161.18264395,0.00021381,2]
[364744601,1749227437954,-2017.77364325,0.00021616,2]
[364744602,1749227437965,-2000.0,0.00021616,2]
[364744603,1749227437974,-2000.0,0.00021616,2]
[364744604,1749227437983,-420.0,0.0002167,2]
[364744605,1749227437993,-1680.0,0.00021774,2]
[364744606,1749227438002,-769.57468647,0.00022,7]
[364744607,1749227438011,-2244.87287491,0.00022085,2]
[364744608,1749227438020,-1000.0,0.00022164,2]
[364744609,1749227438029,-2500.0,0.00022164,2]
[364744610,1749227438038,-1503.42827177,0.00022712,2]
[364744613,1749227438047,-161.18264395,0.00022861,2]
[364744616,1749227438056,-387.83,0.00022934,2]
[364744618,1749227438065,-3338.20703272,0.00023,15]
[364744620,1749227438074,-266.88,0.0002312,30]
[364744622,1749227438083,-2244.87287491,0.00023178,2]
[364744624,1749227438092,-200.0,0.000235,2]
[364744626,1749227438101,-587.0,0.00023599,2]
[364744628,1749227438110,-2351.0,0.00023826,2]
[364744630,1749227438119,-5000.00336191,0.00024,5]
[364744632,1749227438128,-460.0,0.000241,2]
[364744634,1749227438137,-201.0,0.00024169,2]
[364744636,1749227438146,-2244.87287491,0.00024271,2]
[364744637,1749227438156,-161.18264395,0.00024342,2]
[364744639,1749227438165,-386207.175661,0.000248,2]
[364744641,1749227438174,-129626.374836,0.000249,2]
[364744643,1749227438183,-475.99637752,0.00025,3]
[364744645,1749227438193,-201.13770717,0.00025,12]
[364744648,1749227438202,-302.57153467,0.000253,2]
[364744650,1749227438212,-502.51453079,0.00025329,2]
[364744652,1749227438221,-500.73269079,0.00025329,2]
[364744654,1749227438234,-500.0,0.00025329,2]
[364744655,1749227438247,-500.0,0.00025329,2]
[364744657,1749227438256,-500.0,0.00025329,2]
[364744659,1749227438265,-2244.87287491,0.00025363,2]
[364744661,1749227438276,-668.0,0.00025699,2]
[364744663,1749227438290,-161.18264395,0.00025823,2]
[364744665,1749227438300,-294.0,0.00025899,2]
[364744667,1749227438309,-3588.5551991,0.000259,2]
[364744669,1749227438319,-201.13770715,0.000259,14]
[364744671,1749227438328,-372398.28203,0.00026,2]
[364744673,1749227438338,-500.20833028,0.00026,2]
[364744675,1749227438348,-500.0,0.00026,2]
[364744678,1749227438358,-501.96261,0.00026,2]
[364744680,1749227438367,-504.06037281,0.00026,2]
[364744682,1749227438376,-501.57390108,0.00026,2]
[364744684,1749227438385,-500.0,0.00026,2]
[364744685,1749227438395,-500.0,0.00026,2]
[364744687,1749227438404,-500.61943238,0.00026,2]
[364744689,1749227438414,-525.35984224,0.00026,2]
[364744691,1749227438423,-3292.0,0.00026071,2]
[364744693,1749227438433,-178.42,0.00026087,2]
[364744695,1749227438442,-381.90961594,0.00026294,2]
[364744697,1749227438451,-824.73,0.00026339,2]
[364744699,1749227438461,-1694.34896816,0.000264,2]